bitfinex-derivatives/quotes_SOLF0:USTF0_20260211
["timestamp","ask_amount","ask_price","bid_price","bid_amount"]
[1770848278521,9.92789242,79.911,79.882,11.275]
[1770848278727,9.92789242,79.91,79.882,11.275]
[1770848278931,9.92789242,79.909,79.882,11.275]
[1770848279242,9.92789242,79.908,79.882,11.275]
[1770848279536,4.12956054,79.912,79.882,11.275]
[1770848279738,9.9264826,79.911,79.882,11.275]
[1770848279937,11.52269663,79.929,79.888,4.05565052]
[1770848280126,4.54301715,79.937,79.89,4.009385]
[1770848280326,4.54220084,79.936,79.89,4.009385]
[1770848280735,4.54220084,79.935,79.89,4.009385]
[1770848280930,11.52269663,79.946,79.9,4.009385]
[1770848281130,4.54220294,79.948,79.911,11.2708]
[1770848281337,4.54220294,79.939,79.911,11.2708]
[1770848283341,4.54220294,79.939,79.902,11.2722]
[1770848292143,4.57789767,79.937,79.902,11.2722]
[1770848292447,4.57592469,79.935,79.902,11.2722]
[1770848292647,4.57592469,79.933,79.902,11.2722]
[1770848292848,9.8513876,79.932,79.902,11.2722]
[1770848293048,4.57592469,79.933,79.902,11.2722]
[1770848296045,9.84368957,79.932,79.902,11.2722]
[1770848296244,4.57592469,79.933,79.902,11.2722]
[1770848296541,9.84211197,79.932,79.902,11.2722]
[1770848296742,4.57592469,79.933,79.902,11.2722]
[1770848297051,9.84542557,79.932,79.902,11.2722]
[1770848297350,4.57592469,79.933,79.902,11.2722]
[1770848297544,4.009385,79.94,79.852,37.56]
[1770848297545,4.56313279,79.919,79.852,37.56]
[1770848297751,4.56313279,79.909,79.87,4.009385]
[1770848298750,4.5589765,79.908,79.871,11.2765]
[1770848298945,4.5589765,79.908,79.87,4.009385]
[1770848300845,4.5589765,79.908,79.872,11.2764]
[1770848301350,4.009385,79.92,79.883,11.2749]
[1770848301351,4.51887834,79.918,79.883,11.2749]
[1770848301548,9.84794787,79.917,79.883,11.2749]
[1770848301750,9.84794787,79.916,79.883,11.2749]
[1770848301948,9.84794787,79.915,79.883,11.2749]
[1770848302154,4.51887834,79.918,79.883,11.2749]
[1770848302457,4.50886793,79.916,79.883,11.2749]
[1770848302646,14.35660492,79.915,79.883,11.2749]
[1770848302848,9.84773699,79.914,79.883,11.2749]
[1770848303049,9.84773699,79.913,79.883,11.2749]
[1770848303249,9.84773699,79.912,79.883,11.2749]
[1770848303554,9.84773699,79.911,79.883,11.2749]
[1770848303753,4.50886793,79.915,79.883,11.2749]
[1770848303949,9.85307841,79.914,79.883,11.2749]
[1770848304150,9.85307841,79.913,79.883,11.2749]
[1770848304350,9.85307841,79.912,79.883,11.2749]
[1770848304554,9.85307841,79.911,79.883,11.2749]
[1770848304852,4.50885428,79.914,79.883,11.2749]
[1770848305051,9.85553799,79.913,79.883,11.2749]
[1770848305256,9.85553799,79.912,79.883,11.2749]
[1770848305456,9.85553799,79.911,79.883,11.2749]
[1770848305652,4.50885428,79.914,79.883,11.2749]
[1770848305858,4.52121683,79.912,79.883,11.2749]
[1770848307554,4.52121683,79.912,79.87,4.009385]
[1770848309064,4.52121683,79.912,79.86,4.009385]
[1770848310057,4.52121683,79.912,79.848,22.5597]
[1770848310264,4.009385,79.91,79.872,11.2763]
[1770848310469,4.51182231,79.909,79.872,11.2763]
[1770848313771,4.44230341,79.907,79.872,11.2763]
[1770848314064,4.44230341,79.905,79.872,11.2763]
[1770848314464,4.4417871,79.903,79.864,11.2774]
[1770848314758,4.4417871,79.901,79.864,11.2774]
[1770848315767,4.44178786,79.889,79.831,112.94]
[1770848315962,10.05811728,79.888,79.84,4.009385]
[1770848316162,4.44178786,79.889,79.84,4.009385]
[1770848317764,4.44178786,79.889,79.855,11.2787]
[1770848318965,4.44178786,79.889,79.84,4.009385]
[1770848318966,4.44644409,79.879,79.83,4.009385]
[1770848319365,11.52269663,79.916,79.86,4.009385]
[1770848319571,4.44644398,79.909,79.85,4.009385]
[1770848319768,10.03581022,79.915,79.778,176.0]
[1770848319769,4.009385,79.89,79.84,4.009385]
[1770848320062,4.44644398,79.9,79.85,4.009385]
[1770848320271,10.03265071,79.899,79.85,4.009385]
[1770848320466,10.03265071,79.898,79.85,4.009385]
[1770848320670,10.03265071,79.897,79.85,4.009385]
[1770848320874,10.03265071,79.896,79.857,11.2784]
[1770848322063,4.41026185,79.894,79.857,11.2784]
[1770848322268,4.41645329,79.892,79.857,11.2784]
[1770848323471,4.4164583,79.909,79.863,11.2776]
[1770848323673,4.4164583,79.907,79.863,11.2776]
[1770848323859,4.4164583,79.899,79.863,11.2776]
[1770848324065,10.02401568,79.898,79.863,11.2776]
[1770848324269,4.4164583,79.899,79.863,11.2776]
[1770848324469,14.43358754,79.898,79.863,11.2776]
[1770848324665,4.41111578,79.898,79.856,11.2787]
[1770848324872,4.41111578,79.889,79.84,4.01358376]
[1770848325872,4.41111578,79.889,79.847,11.2799]
[1770848326666,4.41111578,79.889,79.854,11.2789]
[1770848326861,11.2733,79.895,79.854,11.2789]
[1770848327071,4.41961147,79.894,79.854,11.2789]
[1770848330571,4.01358376,79.9,79.867,11.2771]
[1770848330877,10.02744311,79.899,79.867,11.2771]
[1770848331071,15.74518623,79.901,79.859,11.2782]
[1770848331377,4.47280554,79.899,79.859,11.2782]
[1770848331575,14.49927555,79.898,79.859,11.2782]
[1770848331876,10.02647001,79.897,79.864,11.2774]
[1770848332065,10.02647001,79.896,79.864,11.2774]
[1770848332270,10.02647001,79.895,79.864,11.2774]
[1770848332571,10.02647001,79.894,79.864,11.2774]
[1770848332770,10.02647001,79.893,79.864,11.2774]
[1770848332972,10.02647001,79.892,79.864,11.2774]
[1770848333168,4.47280554,79.898,79.864,11.2774]
[1770848333377,10.02727312,79.897,79.864,11.2774]
[1770848333577,10.02727312,79.896,79.864,11.2774]
[1770848333777,10.02727312,79.895,79.864,11.2774]
[1770848333977,4.47280554,79.898,79.864,11.2774]
[1770848334175,10.02843989,79.897,79.864,11.2774]
[1770848334376,4.47280554,79.898,79.864,11.2774]
[1770848334567,10.02943543,79.897,79.864,11.2774]
[1770848334770,10.02943543,79.896,79.864,11.2774]
[1770848334979,10.02943543,79.895,79.864,11.2774]
[1770848335168,4.47280554,79.898,79.864,11.2774]
[1770848335378,10.03196639,79.897,79.864,11.2774]
[1770848335579,10.03196639,79.896,79.864,11.2774]
[1770848335778,10.03196639,79.895,79.864,11.2774]
[1770848335978,10.03196639,79.894,79.864,11.2774]
[1770848336178,4.47280554,79.898,79.864,11.2774]
[1770848336474,10.05136396,79.897,79.864,11.2774]
[1770848336679,10.05136396,79.896,79.864,11.2774]
[1770848336878,10.05136396,79.895,79.864,11.2774]
[1770848337080,10.05136396,79.894,79.864,11.2774]
[1770848337274,10.05136396,79.893,79.864,11.2774]
[1770848337475,4.47280554,79.898,79.864,11.2774]
[1770848337679,10.01504282,79.897,79.864,11.2774]
[1770848337879,10.01504282,79.896,79.864,11.2774]
[1770848338081,10.01504282,79.895,79.864,11.2774]
[1770848338279,10.01504282,79.894,79.864,11.2774]
[1770848338481,10.01504282,79.893,79.864,11.2774]
[1770848338679,10.01936772,79.892,79.873,11.2762]
[1770848338885,4.41035367,79.919,79.87,4.01358376]
[1770848340784,4.41035367,79.919,79.885,11.2745]
[1770848341276,4.41035367,79.919,79.847,99.9]
[1770848341277,11.42561926,79.939,79.906,11.2716]
[1770848341477,4.44862884,79.939,79.906,11.2716]
[1770848342081,4.01358376,79.95,79.916,11.2701]
[1770848342286,4.44862884,79.949,79.916,11.2701]
[1770848344691,4.44862884,79.949,79.922,11.2692]
[1770848344891,4.44862884,79.949,79.91,4.01358376]
[1770848345493,4.46598299,79.969,79.925,11.2689]
[1770848345794,4.46598299,79.969,79.883,99.88]
[1770848345795,4.46598299,79.969,79.93,4.01358376]
[1770848345990,4.46598299,79.969,79.891,22.5475]
[1770848345991,4.46598299,79.98,79.943,11.2664]
[1770848352891,4.46598299,79.98,79.952,11.265]
[1770848356195,4.45647089,79.979,79.943,11.2663]
[1770848360200,11.2601,79.988,79.943,11.2663]
[1770848360398,4.44431083,80.0,79.96,4.01358376]
[1770848360902,4.44431083,80.0,79.963,11.2635]
[1770848361503,4.44431232,79.998,79.963,11.2635]
[1770848363802,4.43775306,79.996,79.95,4.01358376]
[1770848364102,4.43775306,79.989,79.93,4.01358376]
[1770848364398,4.01358376,79.98,79.943,11.2664]
[1770848364605,4.40778279,79.979,79.943,11.2664]
[1770848365804,4.40778279,79.979,79.934,11.2676]
[1770848365992,4.40778672,79.969,79.934,11.2676]
[1770848366902,4.39683131,79.98,79.941,11.2667]
[1770848367607,4.39683131,79.98,79.948,11.2656]
[1770848368200,8.41041507,79.98,79.948,11.2656]
[1770848368702,4.42345335,79.979,79.94,11.2668]
[1770848368907,4.01358376,79.97,79.94,11.2668]
[1770848369202,4.42345335,79.979,79.94,11.2668]
[1770848369399,4.42345335,79.979,79.855,175.449]
[1770848369400,4.42345553,79.949,79.89,4.01358376]
[1770848369803,8.43703929,79.94,79.89,4.01358376]
[1770848370198,4.42345553,79.939,79.903,11.272]
[1770848370616,4.40587614,79.929,79.88,4.01358376]
[1770848371710,4.40587614,79.929,79.891,11.2737]
[1770848372507,4.40587614,79.929,79.898,11.2726]
[1770848374914,4.01358376,79.95,79.905,11.2716]
[1770848375210,4.41262883,79.919,79.848,22.5594]
[1770848375412,4.41262883,79.919,79.87,4.01358376]
[1770848375909,4.41262883,79.919,79.889,11.274]
[1770848379013,4.01358376,79.92,79.889,11.274]
[1770848379217,4.01358376,79.93,79.889,11.274]
[1770848380914,4.3752427,79.928,79.889,11.274]
[1770848381120,4.01358376,79.92,79.889,11.274]
[1770848381815,4.3752487,79.919,79.882,11.275]
[1770848383215,4.01131268,79.91,79.872,11.2764]
[1770848383523,4.36349093,79.909,79.872,11.2764]
[1770848396228,4.39971569,79.879,79.82,4.01131268]
[1770848396424,4.40130701,79.869,79.768,175.6386]
[1770848396732,4.01131268,79.86,79.822,11.2835]
[1770848398633,11.2778,79.863,79.822,11.2835]
[1770848399728,15.67343781,79.863,79.822,11.2835]
[1770848400224,4.42886362,79.859,79.81,4.01131268]
[1770848400424,4.42886362,79.839,79.79,4.01131268]
[1770848400633,4.01131268,79.85,79.8,4.01131268]
[1770848401435,4.42886475,79.849,79.8,4.01131268]
[1770848402530,4.01131268,79.84,79.79,4.01131268]
[1770848402735,4.44071217,79.839,79.79,4.01131268]
[1770848403735,4.44071217,79.839,79.794,11.2873]
[1770848405735,4.4320146,79.819,79.77,4.01131268]
[1770848406038,4.4320146,79.819,79.77,11.2908]
[1770848406248,4.4320146,79.819,79.77,15.30211268]
[1770848407232,15.7160146,79.819,79.77,11.2908]
[1770848407432,4.40643346,79.818,79.77,15.30211268]
[1770848408135,4.40643346,79.818,79.77,11.2908]
[1770848408439,4.40322347,79.809,79.761,11.292]
[1770848409135,4.40322347,79.798,79.675,175.8434]
[1770848409341,4.01131268,79.8,79.76,4.01131268]
[1770848409543,4.01131268,79.8,79.75,4.01131268]
[1770848410029,4.40322607,79.809,79.76,4.01131268]
[1770848410733,11.286,79.804,79.76,4.01131268]
[1770848411039,4.40322607,79.809,79.76,4.01131268]
[1770848411241,4.40322607,79.809,79.762,11.2919]
[1770848412641,4.45349121,79.819,79.771,11.2907]
[1770848412836,4.45349121,79.819,79.77,4.01131268]
[1770848413139,4.45349121,79.819,79.739,99.96]
[1770848413140,4.45349121,79.809,79.76,4.01131268]
[1770848414738,11.2866,79.801,79.76,4.01131268]
[1770848416339,11.2876,79.793,79.75,4.01131268]
[1770848416937,11.2876,79.793,79.751,11.2935]
[1770848417339,4.01131268,79.8,79.751,11.2935]
[1770848417947,4.01131268,79.8,79.757,11.2926]
[1770848419447,4.01131268,79.8,79.712,37.56]
[1770848419448,4.01131268,79.79,79.74,4.01131268]
[1770848419646,4.43881102,79.789,79.74,4.01131268]
[1770848420239,4.43929278,79.779,79.73,4.01131268]
[1770848420545,4.43929278,79.779,79.72,4.01131268]
[1770848421045,4.43929278,79.777,79.731,11.2963]
[1770848421643,4.01131268,79.77,79.72,4.01131268]
[1770848421842,4.43929326,79.769,79.72,4.01131268]
[1770848422839,15.73029326,79.769,79.722,11.2975]
[1770848423845,15.73029326,79.769,79.728,11.2968]
[1770848424250,19.72417365,79.78,79.72,4.01131268]
[1770848424646,4.42336097,79.769,79.72,4.01131268]
[1770848425038,4.42336097,79.759,79.72,4.01131268]
[1770848425249,4.42336209,79.749,79.668,22.6105]
[1770848425445,4.42336209,79.747,79.7,4.01131268]
[1770848425647,4.42336209,79.739,79.69,4.01131268]
[1770848425944,11.2955,79.737,79.692,11.3019]
[1770848426145,4.01131268,79.73,79.68,4.01131268]
[1770848426348,4.42616562,79.719,79.67,4.01131268]
[1770848426552,4.42616562,79.689,79.64,4.01131268]
[1770848427352,4.42616659,79.679,79.63,4.01131268]
[1770848427646,4.42616659,79.69,79.64,4.01131268]
[1770848427853,8.43747927,79.69,79.64,4.01131268]
[1770848428545,4.41821333,79.689,79.64,4.01131268]
[1770848428947,4.41821333,79.689,79.634,11.31]
[1770848429946,4.41821464,79.702,79.646,11.3083]
[1770848430450,4.46634912,79.729,79.64,10.80619705]
[1770848430646,4.46634912,79.729,79.628,2.18430377]
[1770848430647,4.46634912,79.726,79.669,11.3051]
[1770848431250,11.2955,79.738,79.677,11.3039]
[1770848431442,11.2955,79.738,79.66,10.80619705]
[1770848431443,4.46634817,79.737,79.66,10.80619705]
[1770848431955,4.46634817,79.718,79.661,11.3063]
[1770848432153,4.46634817,79.718,79.66,10.80619705]
[1770848432649,11.2959,79.735,79.669,11.3051]
[1770848432948,4.46483761,79.734,79.669,11.3051]
[1770848433349,4.46483761,79.734,79.66,10.80619705]
[1770848433350,4.46483676,79.748,79.68,10.80619705]
[1770848433950,4.46483676,79.748,79.702,11.3004]
[1770848434151,4.46483676,79.748,79.68,10.80619705]
[1770848435355,4.46483676,79.748,79.702,11.3004]
[1770848435549,4.46483676,79.748,79.68,10.80619705]
[1770848436343,4.46483676,79.748,79.701,11.3005]
[1770848436660,4.42469454,79.783,79.72,10.80619705]
[1770848437150,4.42469454,79.783,79.737,11.2955]
[1770848437751,4.42469454,79.783,79.746,11.2942]
[1770848438550,4.42987566,79.805,79.746,11.2942]
[1770848439252,4.42987566,79.805,79.74,10.80619705]
[1770848439957,4.42987566,79.805,79.76,11.2921]
[1770848440748,4.42987566,79.805,79.74,10.80619705]
[1770848441760,4.42987566,79.805,79.757,11.2926]
[1770848441957,4.42987566,79.805,79.74,10.80619705]
[1770848442756,4.42987566,79.805,79.727,179.64]
[1770848443264,4.33589079,79.803,79.743,11.2946]
[1770848443464,4.33589522,79.801,79.743,11.2946]
[1770848444767,4.31890461,79.794,79.743,11.2946]
[1770848445262,4.31890461,79.809,79.74,10.77956391]
[1770848447762,4.31890461,79.809,79.767,11.2912]
[1770848447962,4.31890461,79.809,79.74,10.77956391]
[1770848448266,4.29003406,79.807,79.721,22.5956]
[1770848448469,4.29637315,79.805,79.721,22.5956]
[1770848448661,4.29637315,79.803,79.721,22.5956]
[1770848449768,4.29637877,79.798,79.75,11.2936]
[1770848451864,4.29637877,79.798,79.757,11.2927]
[1770848453162,4.29637877,79.798,79.767,11.2911]
[1770848453365,15.58245615,79.811,79.74,10.77956391]
[1770848453871,4.29735615,79.81,79.74,10.77956391]
[1770848455058,4.29735615,79.81,79.771,11.2906]
[1770848455264,4.29735615,79.81,79.74,10.77956391]
[1770848456772,100.04,79.839,79.761,3.99671108]
[1770848456968,9.84899815,79.838,79.761,3.99671108]
[1770848457278,9.84899815,79.837,79.761,3.99671108]
[1770848457575,9.84899815,79.836,79.761,3.99671108]
[1770848457764,9.84899815,79.835,79.761,3.99671108]
[1770848457960,9.84899815,79.834,79.761,3.99671108]
[1770848458165,9.84899815,79.833,79.761,3.99671108]
[1770848458368,10.77956391,79.83,79.761,3.99671108]
[1770848458972,3.99575929,79.818,79.777,11.2898]
[1770848460767,3.99575929,79.831,79.779,3.99671108]
[1770848461370,3.99575929,79.831,79.803,11.2862]
[1770848461580,9.73131361,79.862,79.792,3.99671108]
[1770848461874,10.77956391,79.87,79.792,3.99671108]
[1770848462277,10.77956391,79.89,79.809,3.99671108]
[1770848462574,9.72664205,79.889,79.809,3.99671108]
[1770848462773,10.77956391,79.89,79.809,3.99671108]
[1770848462973,9.72284724,79.889,79.809,3.99671108]
[1770848463280,9.72284724,79.888,79.809,3.99671108]
[1770848463481,3.99575929,79.886,79.809,3.99671108]
[1770848463679,3.99575929,79.882,79.839,11.281]
[1770848465071,3.99575929,79.878,79.806,3.99671108]
[1770848466774,3.99575929,79.878,79.828,3.99671108]
[1770848467979,3.99575929,79.878,79.833,11.2819]
[1770848468378,3.99575929,79.864,79.815,11.2844]
[1770848468973,104.74,79.903,79.807,11.2856]
[1770848468974,3.99575929,79.855,79.807,11.2856]
[1770848469176,3.99575929,79.849,79.777,3.99671108]
[1770848469882,3.99575929,79.836,79.78,11.2893]
[1770848470172,10.77956391,79.83,79.76,3.99671108]
[1770848470367,3.99575929,79.829,79.76,3.99671108]
[1770848471887,3.99575929,79.821,79.771,11.2906]
[1770848472085,10.77956391,79.85,79.727,3.99671108]
[1770848472086,3.99575929,79.809,79.727,3.99671108]
[1770848472278,11.31402218,79.841,79.727,3.99671108]
[1770848472279,3.99575929,79.789,79.738,11.2953]
[1770848472582,3.99575929,79.789,79.709,3.99671108]
[1770848472781,10.77956391,79.79,79.709,3.99671108]
[1770848472782,3.99575929,79.769,79.709,3.99671108]
[1770848473782,3.99575929,79.785,79.726,3.99671108]
[1770848474176,3.99575929,79.783,79.71,3.99671108]
[1770848474382,3.99575929,79.781,79.71,3.99671108]
[1770848474882,3.99575929,79.774,79.71,3.99671108]
[1770848475677,3.99575929,79.774,79.714,3.99671108]
[1770848475880,3.99575929,79.769,79.714,3.99671108]
[1770848477279,3.99575929,79.769,79.718,3.99671108]
[1770848477883,10.77956391,79.79,79.69,10.77956391]
[1770848477884,3.99575929,79.805,79.745,11.2943]
[1770848478389,3.99575929,79.805,79.754,3.99671108]
[1770848479387,3.99575929,79.819,79.766,11.2914]
[1770848479599,3.99575929,79.819,79.767,3.99671108]
[1770848480885,3.99575929,79.819,79.771,11.2906]
[1770848482091,10.77956391,79.83,79.746,100.02]
[1770848482092,4.10972193,79.817,79.762,11.2919]
[1770848482291,4.10972193,79.815,79.762,11.2919]
[1770848482693,4.10972193,79.807,79.752,11.2933]
[1770848484289,4.10972193,79.807,79.749,3.87343941]
[1770848484890,4.10972193,79.807,79.766,11.2913]
[1770848485893,4.10972193,79.807,79.775,11.29]
[1770848486086,4.10972193,79.827,79.775,11.29]
[1770848486287,4.10972193,79.825,79.775,11.29]
[1770848486489,9.74063428,79.824,79.775,11.29]
[1770848486685,9.74063428,79.823,79.775,11.29]
[1770848486888,4.10972193,79.824,79.775,11.29]
[1770848487599,9.82619959,79.823,79.775,11.29]
[1770848487793,9.82619959,79.822,79.775,11.29]
[1770848487990,9.82619959,79.821,79.775,11.29]
[1770848488197,4.10972193,79.824,79.779,4.05842446]
[1770848489495,4.10972193,79.824,79.781,4.05842446]
[1770848489702,3.83080349,79.839,79.781,4.05842446]
[1770848489898,9.82936765,79.838,79.781,4.05842446]
[1770848490205,9.82936765,79.837,79.781,4.05842446]
[1770848490405,3.83080349,79.839,79.781,4.05842446]
[1770848490607,9.81685393,79.838,79.781,4.05842446]
[1770848490807,9.81685393,79.837,79.799,11.2867]
[1770848491008,3.83080349,79.839,79.799,11.2867]
[1770848493407,3.83080349,79.863,79.806,4.05842446]
[1770848493706,3.83080349,79.863,79.764,60.1434]
[1770848493707,3.83080349,79.861,79.792,4.05842446]
[1770848493905,3.83080349,79.859,79.792,4.05842446]
[1770848494110,3.83080349,79.857,79.792,4.05842446]
[1770848494705,3.83080349,79.85,79.802,11.2863]
[1770848495709,3.83080349,79.85,79.781,4.05842446]
[1770848496411,3.83080349,79.85,79.767,4.05842446]
[1770848496412,3.83080349,79.833,79.767,4.05842446]
[1770848496597,3.83080349,79.831,79.767,4.05842446]
[1770848497400,3.83080349,79.83,79.785,11.2887]
[1770848499712,3.83080349,79.83,79.785,15.34712446]
[1770848500108,3.83080349,79.83,79.785,4.05842446]
[1770848500310,11.2809,79.841,79.785,4.05842446]
[1770848501713,11.2809,79.841,79.798,11.2868]
[1770848504510,3.83080349,79.845,79.808,11.2854]
[1770848504711,11.2795,79.851,79.808,15.34382446]
[1770848504914,11.2795,79.851,79.809,4.05842446]
[1770848505111,3.83080349,79.858,79.825,11.2829]
[1770848505619,3.83080349,79.858,79.818,11.284]
[1770848508216,11.2786,79.857,79.818,11.284]
[1770848508422,108.62,79.888,79.78,10.76235457]
[1770848508423,3.83080349,79.855,79.781,4.05842446]
[1770848508611,3.83080349,79.853,79.781,4.05842446]
[1770848509022,3.83080349,79.843,79.802,11.2863]
[1770848509425,3.83080349,79.843,79.781,4.05842446]
[1770848510726,3.83080349,79.843,79.807,11.2855]
[1770848516724,11.2808,79.842,79.807,11.2855]
[1770848520429,4.0554735,79.841,79.807,11.2855]
[1770848520731,4.0554735,79.832,79.793,11.2875]
[1770848521031,4.0554735,79.832,79.76,110.74235457]
[1770848521032,4.0554735,79.886,79.801,3.8305942]
[1770848521335,15.3299735,79.886,79.839,3.8305942]
[1770848522629,15.3299735,79.886,79.82,10.76235457]
[1770848522630,4.0554735,79.914,79.841,3.8305942]
[1770848523135,4.0554735,79.914,79.84,10.76235457]
[1770848523136,4.0554735,79.912,79.864,3.8305942]
[1770848524432,4.0554735,79.908,79.864,3.8305942]
[1770848525032,11.2727,79.899,79.864,3.8305942]
[1770848525231,11.2727,79.899,79.852,3.8305942]
[1770848526829,11.2727,79.899,79.853,11.2791]
[1770848527738,11.2727,79.899,79.853,15.1096942]
[1770848529230,11.2727,79.899,79.854,3.8305942]
[1770848529427,4.0554735,79.921,79.856,3.8305942]
[1770848530234,4.0554735,79.921,79.837,99.94]
[1770848530235,4.0554735,79.921,79.874,3.8305942]
[1770848531841,4.0554735,79.934,79.883,3.8305942]
[1770848532234,4.0554735,79.934,79.869,3.8305942]
[1770848532936,4.0554735,79.925,79.877,15.1061942]
[1770848533138,4.0554735,79.925,79.878,3.8305942]
[1770848534734,4.0554735,79.925,79.881,11.2751]
[1770848537147,4.0554735,79.925,79.886,11.2744]
[1770848539445,11.2678,79.934,79.893,3.8305942]
[1770848539642,4.0554735,79.945,79.893,3.8305942]
[1770848540844,11.2663,79.944,79.901,11.2723]
[1770848541245,11.2663,79.944,79.893,3.8305942]
[1770848542849,11.2663,79.944,79.907,11.2714]
[1770848543054,4.21137561,79.941,79.893,3.8305942]
[1770848544362,4.21137561,79.941,79.905,11.2717]
[1770848545148,99.9,79.97,79.913,4.21925118]
[1770848545149,4.21137561,79.956,79.913,4.21925118]
[1770848546851,4.21137561,79.956,79.919,11.2697]
[1770848547355,4.21137561,79.956,79.919,15.48895118]
[1770848547554,3.87472123,79.947,79.906,11.2715]
[1770848548257,3.87472123,79.947,79.875,99.88]
[1770848548258,3.87472123,79.937,79.896,11.2729]
[1770848548950,3.87472123,79.937,79.902,11.2721]
[1770848549448,3.87472123,79.933,79.865,4.09974546]
[1770848549651,3.87472123,79.931,79.865,4.09974546]
[1770848549846,3.87472123,79.929,79.865,4.09974546]
[1770848550046,3.87472123,79.927,79.865,4.09974546]
[1770848550557,3.87472123,79.902,79.851,4.09974546]
[1770848551448,10.76235457,79.9,79.851,4.09974546]
[1770848551643,3.87472123,79.899,79.851,4.09974546]
[1770848551845,3.87472123,79.898,79.852,11.2792]
[1770848552850,3.87472123,79.895,79.852,11.2792]
[1770848553559,3.87472123,79.889,79.844,11.2803]
[1770848554852,11.2749,79.883,79.844,11.2803]
[1770848555454,3.87472123,79.889,79.844,11.2803]
[1770848556756,11.2744,79.887,79.844,15.38004546]
[1770848556964,3.87472123,79.886,79.846,4.09974546]
[1770848558766,11.2746,79.885,79.846,4.09974546]
[1770848561160,11.2755,79.879,79.846,4.09974546]
[1770848562462,3.87472123,79.864,79.809,4.09974546]
[1770848562963,11.279,79.855,79.809,4.09974546]
[1770848563568,10.76235457,79.87,79.809,4.09974546]
[1770848563569,11.2798,79.848,79.809,4.09974546]
[1770848566073,3.87472123,79.867,79.809,4.09974546]
[1770848566274,3.87472123,79.881,79.809,4.09974546]
[1770848566473,3.87472123,79.879,79.809,4.09974546]
[1770848566667,3.87472123,79.877,79.809,4.09974546]
[1770848566868,9.6483903,79.878,79.809,4.09974546]
[1770848566869,3.87472123,79.875,79.809,4.09974546]
[1770848567879,11.2779,79.862,79.821,4.09974546]
[1770848568072,3.87472123,79.875,79.821,4.09974546]
[1770848568375,11.2798,79.848,79.811,11.2849]
[1770848568972,11.2798,79.848,79.812,4.09974546]
[1770848572483,11.2782,79.86,79.817,3.84779039]
[1770848573878,11.2782,79.86,79.819,3.84779039]
[1770848574280,11.2768,79.87,79.822,3.84779039]
[1770848574475,4.17025884,79.869,79.822,3.84779039]
[1770848575875,11.2779,79.862,79.822,3.84779039]
[1770848577085,15.44725884,79.869,79.822,3.84779039]
[1770848578789,15.44725884,79.869,79.827,3.84779039]
[1770848579681,11.2776,79.864,79.827,3.84779039]
[1770848580283,4.17025884,79.879,79.841,3.84779039]
[1770848580479,4.17025884,79.879,79.831,3.84779039]
[1770848580692,4.17025884,79.87,79.831,3.84779039]
[1770848581692,11.278,79.861,79.831,3.84779039]
[1770848582586,11.278,79.861,79.795,37.62]
[1770848582587,4.17025884,79.855,79.819,3.84779039]
[1770848583388,11.2787,79.856,79.819,3.84779039]
[1770848584391,11.2778,79.863,79.821,11.2836]
[1770848584594,4.17025884,79.879,79.831,3.84779039]
[1770848584788,4.17025884,79.907,79.851,3.84779039]
[1770848585090,11.2731,79.896,79.853,3.84779039]
[1770848585492,11.2739,79.89,79.853,3.84779039]
[1770848587892,11.2748,79.884,79.853,3.84779039]
[1770848588090,4.17025884,79.896,79.853,3.84779039]
[1770848589793,11.2739,79.891,79.853,3.84779039]
[1770848590603,4.17025884,79.873,79.834,3.84779039]
[1770848591302,11.2769,79.869,79.834,3.84779039]
[1770848592195,15.44715884,79.869,79.834,3.84779039]
[1770848592396,4.17025884,79.866,79.822,3.84779039]
[1770848593197,4.17025884,79.864,79.822,3.84779039]
[1770848594208,9.80750688,79.863,79.822,3.84779039]
[1770848594501,9.80750688,79.862,79.822,3.84779039]
[1770848594703,4.17025884,79.861,79.822,3.84779039]
[1770848594905,4.17025884,79.874,79.824,3.84779039]
[1770848595207,9.80982794,79.873,79.824,3.84779039]
[1770848595505,9.80982794,79.872,79.824,3.84779039]
[1770848595705,9.80982794,79.871,79.832,15.12989039]
[1770848596011,9.80982794,79.87,79.832,15.12989039]
[1770848596202,9.80982794,79.869,79.832,15.12989039]
[1770848596402,4.17025884,79.874,79.832,15.12989039]
[1770848596602,9.81497961,79.873,79.832,15.12989039]
[1770848596804,9.81497961,79.872,79.832,15.12989039]
[1770848597004,9.81497961,79.871,79.832,15.12989039]
[1770848597205,9.81497961,79.87,79.832,15.12989039]
[1770848597405,9.81497961,79.869,79.832,15.12989039]